bitfinex-derivatives/quotes_ETHF0:USTF0_20241023
["timestamp","ask_amount","ask_price","bid_price","bid_amount"]
[1729723301427,0.8409,2511.6,2511.5,0.39846]
[1729723301629,0.8409,2511.6,2511.5,1.83846]
[1729723302621,0.8409,2511.6,2511.5,5.04626]
[1729723302818,0.8409,2511.6,2511.5,3.60626]
[1729723303025,0.8409,2511.6,2511.5,5.04626]
[1729723303225,1.44,2511.8,2511.5,8.6294]
[1729723303525,1.44,2511.8,2511.7,0.39843]
[1729723304117,0.8191,2512.0,2511.7,0.39843]
[1729723304325,1.44,2511.8,2511.6,3.26692]
[1729723304524,1.44,2511.8,2511.7,0.39843]
[1729723308730,0.8191,2512.0,2511.6,2.2708]
[1729723308929,1.21749,2512.0,2511.9,0.3984]
[1729723309228,5.41553192,2512.0,2511.9,0.3984]
[1729723310422,6.85553192,2512.0,2511.9,0.3984]
[1729723311927,6.85553192,2512.0,2511.8,3.2078]
[1729723311928,6.45714192,2512.0,2511.8,3.60621]
[1729723312127,1.44,2511.9,2511.8,3.60621]
[1729723316730,1.21749,2512.0,2511.9,0.3984]
[1729723316934,2.65749,2512.0,2511.9,0.3984]
[1729723317131,6.76521564,2512.0,2511.9,0.8029]
[1729723317927,7.16359564,2512.0,2511.9,0.8029]
[1729723319127,7.16359564,2512.0,2511.9,0.4045]
[1729723320030,5.32521564,2512.0,2511.9,0.3984]
[1729723320332,7.16360564,2512.0,2511.9,0.3984]
[1729723320836,6.76521564,2512.0,2511.9,0.3984]
[1729723321033,2.2591,2512.0,2511.9,0.3984]
[1729723321234,2.65748,2512.0,2511.9,0.3984]
[1729723323540,2.65748,2512.0,2511.8,3.2078]
[1729723323738,2.65748,2512.0,2511.9,0.3984]
[1729723324339,2.2591,2512.0,2511.8,3.2078]
[1729723324559,1.8384,2511.9,2511.8,3.60621]
[1729723325043,6.3058016,2511.9,2511.8,3.60621]
[1729723325231,5.9074016,2511.9,2511.8,3.60621]
[1729723325436,6.3058016,2511.9,2511.8,3.60621]
[1729723326335,6.3058016,2511.9,2511.8,0.39841]
[1729723326541,5.9074016,2511.9,2511.8,3.60621]
[1729723327146,5.9074016,2511.9,2511.8,0.39841]
[1729723327450,5.9074016,2511.9,2511.8,3.60621]
[1729723327844,5.9074016,2511.9,2511.8,0.39841]
[1729723328047,5.9074016,2511.9,2511.8,3.60621]
[1729723329041,6.3058016,2511.9,2511.8,3.60621]
[1729723329238,5.9074016,2511.9,2511.8,3.60621]
[1729723329941,6.3058016,2511.9,2511.8,3.60621]
[1729723330442,5.9074016,2511.9,2511.8,3.60621]
[1729723331440,4.4674016,2511.9,2511.8,5.04621]
[1729723332852,2.6575,2512.0,2511.8,4.6478]
[1729723333148,2.6575,2512.0,2511.9,0.3984]
[1729723333749,2.6575,2512.0,2511.9,3.6062]
[1729723336043,0.8191,2512.0,2511.9,5.0462]
[1729723336347,3.35275042,2512.5,2512.2,0.39835]
[1729723336348,0.39834,2512.3,2512.2,0.39835]
[1729723336652,6.46842571,2512.3,2512.1,1.44]
[1729723336847,6.86677571,2512.3,2512.2,0.39835]
[1729723337053,2.26665,2512.3,2512.2,0.39835]
[1729723337261,6.68108773,2512.3,2512.2,0.39835]
[1729723338051,6.28273773,2512.3,2512.1,1.44]
[1729723338249,0.39835,2512.2,2512.1,0.39836]
[1729723338549,4.59680584,2512.2,2512.1,0.39836]
[1729723339741,4.59680584,2512.2,2512.1,1.83836]
[1729723339947,0.39835,2512.2,2512.1,1.83836]
[1729723340644,0.82664,2512.3,2512.2,0.39835]
[1729723340849,0.4283,2512.3,2512.2,5.04615]
[1729723342349,2.27452,2512.4,2512.3,0.39834]
[1729723342746,2.27452,2512.4,2512.3,0.82484]
[1729723347357,1.8762,2512.4,2512.3,0.82484]
[1729723347557,0.4362,2512.4,2512.3,2.26484]
[1729723347853,1.8527,2512.5,2512.4,0.39832]
[1729723348058,1.8527,2512.5,2512.4,0.83002]
[1729723348450,2.251,2512.5,2512.4,0.83002]
[1729723349658,1.14120427,2513.1,2512.4,10.4995]
[1729723349962,0.4334,2513.1,2513.0,1.44]
[1729723350160,0.4334,2513.1,2513.0,6.04402]
[1729723350861,1.44,2513.2,2513.0,5.6458]
[1729723351066,1.44,2513.2,2513.1,0.39821]
[1729723351259,0.428,2513.3,2513.2,0.39819]
[1729723351456,0.99523,2513.9,2513.3,0.39817]
[1729723351651,0.39814,2513.5,2513.4,5.04596]
[1729723351852,1.83814,2513.5,2513.4,4.6478]
[1729723352056,2.24994,2513.5,2513.4,4.6478]
[1729723352468,1.8518,2513.5,2513.4,4.6478]
[1729723352859,2.24994,2513.5,2513.4,4.6478]
[1729723353363,0.4118,2513.5,2513.4,4.6478]
[1729723353670,1.8518,2513.5,2513.4,4.6478]
[1729723353966,2.24994,2513.5,2513.4,4.6478]
[1729723354167,1.8518,2513.5,2513.4,4.6478]
[1729723354462,1.8518,2513.5,2513.0,0.998]
[1729723354463,1.8518,2513.5,2513.2,1.44]
[1729723354664,0.39816,2513.4,2513.3,0.998]
[1729723355071,4.70243819,2513.4,2513.3,0.998]
[1729723356065,4.70243819,2513.4,2513.3,2.438]
[1729723356364,1.83816,2513.4,2513.3,0.998]
[1729723356870,1.83816,2513.4,2513.3,4.2058]
[1729723357264,0.4118,2513.5,2513.3,5.6458]
[1729723357566,0.39813,2513.7,2513.5,0.39814]
[1729723357769,0.39811,2513.7,2513.6,1.8517]
[1729723358274,0.39811,2513.7,2513.6,5.0595]
[1729723358569,1.44,2513.8,2513.6,5.0595]
[1729723358866,1.83811,2513.8,2513.6,5.45763]
[1729723359068,1.83811,2513.8,2513.6,5.0595]
[1729723359364,1.44,2513.7,2513.6,4.01763]
[1729723359561,1.44,2513.7,2513.6,3.6195]
[1729723359767,0.39811,2513.7,2513.6,5.0595]
[1729723359967,1.83811,2513.8,2513.6,5.0595]
[1729723360268,1.83811,2513.8,2513.6,5.45762]
[1729723360469,0.39811,2513.7,2513.6,5.0595]
[1729723360670,1.83811,2513.7,2513.6,3.6195]
[1729723361171,1.278,2514.0,2513.6,9.0379]
[1729723361369,0.8684,2514.0,2513.9,4.6478]
[1729723361704,0.8684,2514.0,2513.9,5.6828]
[1729723361705,0.83327,2514.0,2513.9,5.6828]
[1729723361971,0.4142,2514.3,2513.9,7.5397]
[1729723362265,0.39798,2514.6,2514.3,0.39801]
[1729723362471,1.44,2514.5,2514.3,1.44]
[1729723362673,1.44,2514.5,2514.3,1.83801]
[1729723362875,1.44,2514.5,2514.3,1.44]
[1729723363170,1.44,2514.5,2514.3,1.83801]
[1729723363768,2.2849,2514.6,2514.4,1.44]
[1729723363966,0.39799,2514.5,2514.4,1.44]
[1729723364367,2.68288,2514.6,2514.4,1.838]
[1729723364563,2.68288,2514.6,2514.5,1.035]
[1729723364976,2.2849,2514.6,2514.5,1.035]
[1729723365174,2.68287,2514.6,2514.5,1.035]
[1729723366465,2.2849,2514.6,2514.4,1.44]
[1729723366673,0.398,2514.4,2514.3,1.035]
[1729723366871,1.838,2514.4,2514.3,1.035]
[1729723370280,1.838,2514.4,2514.2,5.6828]
[1729723370281,0.39802,2514.3,2514.2,5.6828]
[1729723370567,0.39802,2514.3,2514.2,6.08083]
[1729723370764,0.39802,2514.3,2514.2,5.6828]
[1729723370967,0.39802,2514.3,2514.2,6.08083]
[1729723371472,0.39802,2514.3,2514.2,4.6478]
[1729723371672,0.39802,2514.3,2514.2,4.2428]
[1729723371868,0.83462,2514.3,2514.2,4.2428]
[1729723372173,2.27462,2514.3,2514.2,4.2428]
[1729723373477,0.83462,2514.3,2514.2,4.2428]
[1729723374369,0.83462,2514.3,2514.2,6.08083]
[1729723375977,0.4366,2514.3,2514.2,6.08083]
[1729723376278,0.39802,2514.4,2514.3,0.39801]
[1729723376571,0.39802,2514.4,2514.3,1.83801]
[1729723377566,0.39802,2514.4,2514.3,4.6478]
[1729723377775,0.39802,2514.4,2514.3,5.04582]
[1729723378875,5.15271096,2514.5,2514.4,0.398]
[1729723379367,5.15271096,2514.5,2514.4,0.8191]
[1729723379572,4.75472096,2514.5,2514.4,0.8191]
[1729723379768,0.4155,2514.6,2514.4,5.8379]
[1729723379968,3.34916959,2515.3,2514.5,1.44]
[1729723380176,3.34916959,2515.3,2514.8,1.44]
[1729723380177,0.39792,2514.9,2514.8,1.44]
[1729723380371,6.07873575,2514.9,2514.8,1.83794]
[1729723380572,6.07873575,2514.9,2514.8,1.44]
[1729723380573,1.83792,2514.9,2514.8,1.44]
[1729723380973,0.39794,2514.8,2514.7,3.2078]
[1729723381273,2.24034,2514.8,2514.7,3.2078]
[1729723381674,0.39795,2514.7,2514.6,1.035]
[1729723382674,0.39795,2514.7,2514.6,4.2428]
[1729723384372,0.39795,2514.7,2514.4,1.035]
[1729723384373,9.75973326,2514.7,2514.4,1.035]
[1729723384581,0.398,2514.5,2514.4,1.035]
[1729723385079,1.2675,2514.5,2514.4,1.035]
[1729723385580,0.8695,2514.5,2514.2,3.2078]
[1729723385775,1.83802,2514.3,2514.2,5.7468]
[1729723385975,1.24045888,2514.3,2514.2,6.14483]
[1729723386576,1.63847888,2514.3,2514.2,5.7468]
[1729723386977,1.63847888,2514.3,2514.2,6.14483]
[1729723387279,0.39802,2514.3,2514.2,6.14483]
[1729723388080,0.39802,2514.3,2514.2,5.04583]
[1729723388384,0.39802,2514.3,2514.2,4.6478]
[1729723388975,0.39802,2514.3,2514.2,5.04583]
[1729723389980,0.39802,2514.3,2514.2,4.6478]
[1729723390480,0.39802,2514.3,2514.2,5.04583]
[1729723391888,0.39802,2514.3,2514.2,4.6478]
[1729723392277,0.39802,2514.3,2514.2,5.04583]
[1729723393080,0.9948,2515.0,2514.2,9.62049]
[1729723393286,0.39794,2514.8,2514.7,1.83795]
[1729723394780,2.6469,2514.9,2514.8,0.39794]
[1729723395382,1.44,2515.0,2514.8,4.6478]
[1729723395589,1.44,2515.0,2514.9,0.39792]
[1729723395979,5.99829159,2515.0,2514.9,0.39792]
[1729723396182,6.39621159,2515.0,2514.8,3.60573]
[1729723396480,5.99829159,2515.0,2514.8,4.6478]
[1729723396683,5.99829159,2515.0,2514.9,0.39792]
[1729723397186,0.39792,2514.9,2514.8,3.2078]
[1729723397377,2.25132,2514.9,2514.8,3.2078]
[1729723398182,2.25132,2514.9,2514.8,3.60574]
[1729723398385,0.4134,2514.9,2514.8,3.60574]
[1729723398580,2.25132,2514.9,2514.8,3.60574]
[1729723398783,1.8534,2514.9,2514.8,3.60574]
[1729723399778,0.39792,2515.0,2514.9,0.39792]
[1729723400184,1.83792,2515.0,2514.9,0.39792]
[1729723403085,1.44,2515.0,2514.9,0.39792]
[1729723403488,1.44,2515.0,2514.8,3.2078]
[1729723403785,1.83791,2515.0,2514.8,3.2078]
[1729723403990,1.44,2515.0,2514.9,0.39792]
[1729723404487,1.83791,2515.0,2514.9,0.39792]
[1729723406194,1.44,2515.0,2514.9,0.39792]
[1729723406396,1.83791,2515.1,2515.0,0.39791]
[1729723406582,1.83791,2515.1,2515.0,0.82251]
[1729723408196,1.83791,2515.1,2515.0,4.03031]
[1729723408901,1.83791,2515.1,2515.0,3.2078]
[1729723410196,1.44,2515.1,2514.9,0.39792]
[1729723410498,0.39792,2514.9,2514.8,4.00823]
[1729723410689,1.83792,2514.9,2514.8,4.00823]
[1729723410890,1.83792,2514.9,2514.8,5.17223]
[1729723411097,1.44,2514.9,2514.8,5.17223]
[1729723412196,1.44,2514.9,2514.8,1.96443]
[1729723412693,1.83792,2514.9,2514.8,5.17223]
[1729723415695,0.39792,2515.0,2514.9,0.39791]
[1729723416298,0.39792,2515.0,2514.9,4.37391]
[1729723416998,1.83792,2515.0,2514.9,4.37391]
[1729723419602,1.83792,2515.0,2514.9,7.58171]
[1729723422198,0.39792,2515.0,2514.9,7.58171]
[1729723423510,0.39792,2515.0,2514.9,3.60571]
[1729723423802,0.39792,2515.0,2514.9,7.58171]
[1729723424406,0.39792,2515.0,2514.9,3.60571]
[1729723425602,0.39791,2515.0,2514.9,9.02171]
[1729723425905,0.39791,2515.0,2514.9,5.04571]
[1729723426104,0.39791,2515.0,2514.9,9.02171]
[1729723426810,2.2362,2515.1,2515.0,0.39791]
[1729723429712,2.2362,2515.1,2514.9,3.2078]
[1729723429713,0.39791,2515.0,2514.9,3.2078]
[1729723429908,1.83791,2515.0,2514.9,3.60572]
[1729723432307,1.44,2515.0,2514.9,3.60572]
[1729723432611,1.83791,2515.0,2514.9,3.60572]
[1729723432809,0.39791,2515.0,2514.9,3.60572]
[1729723435108,1.8383,2515.1,2514.9,3.2078]
[1729723435308,0.39791,2515.0,2514.9,3.60571]
[1729723440113,1.8383,2515.1,2514.9,3.2078]
[1729723440416,2.2362,2515.1,2515.0,0.39791]
[1729723444819,1.8383,2515.1,2514.9,4.3038]
[1729723445123,1.8383,2515.1,2515.0,0.39791]
[1729723445124,2.2362,2515.1,2515.0,0.39791]
[1729723447017,2.2362,2515.1,2515.0,3.60571]
[1729723450521,0.4337,2515.2,2515.0,8.6238]
[1729723450730,0.3997,2515.5,2515.4,0.39784]
[1729723450934,0.3997,2515.5,2515.4,5.04564]
[1729723451121,0.4085,2515.6,2515.5,0.39783]
[1729723451432,0.4085,2515.6,2515.5,2.24633]
[1729723451625,0.4085,2515.6,2515.5,2.65863]
[1729723451930,1.83778,2515.8,2515.5,3.3568]
[1729723452120,0.39778,2515.8,2515.7,5.04559]
[1729723452329,1.83778,2515.8,2515.7,3.2078]
[1729723452529,10.14182144,2515.8,2515.7,3.2078]
[1729723452727,0.39783,2515.5,2515.4,4.3038]
[1729723452930,1.83783,2515.5,2515.4,4.3038]
[1729723453123,1.83783,2515.5,2515.4,3.2078]
[1729723453328,1.83783,2515.5,2515.4,4.3038]
[1729723453731,2.27323,2515.5,2515.4,4.3038]
[1729723455133,2.27323,2515.5,2515.4,3.2078]
[1729723455333,7.2906,2515.5,2515.0,3.6163]
[1729723455531,1.83789,2515.1,2515.0,3.2078]
[1729723455836,1.83789,2515.1,2515.0,5.0457]
[1729723456033,0.39789,2515.1,2515.0,5.0457]
[1729723456443,1.22219,2515.1,2515.0,4.6478]
[1729723456639,3.07189,2515.1,2515.0,4.6478]
[1729723457338,3.07189,2515.1,2515.0,5.04571]
[1729723458142,3.07189,2515.1,2515.0,4.6478]
[1729723458441,3.07189,2515.1,2515.0,5.04571]
[1729723458741,1.63189,2515.1,2515.0,5.04571]
[1729723459137,0.8243,2515.1,2515.0,5.04571]
[1729723459343,0.39787,2515.3,2515.2,0.39786]
[1729723459542,0.39787,2515.3,2515.2,1.83786]
[1729723459543,0.82517,2515.3,2515.2,1.83786]
[1729723460436,0.4273,2515.3,2515.2,1.83786]
[1729723460734,0.8379,2515.5,2515.2,1.44]
[1729723460936,0.3983,2515.5,2515.4,5.04564]
[1729723463043,0.3983,2515.5,2515.4,1.83784]
[1729723463444,0.3983,2515.5,2515.4,5.04564]
[1729723465335,0.3978,2515.7,2515.6,0.39781]
[1729723465649,0.3978,2515.7,2515.6,1.83781]
[1729723466648,3.10689,2515.8,2515.7,0.3978]
[1729723466848,1.66689,2515.8,2515.7,3.6056]
[1729723467947,1.83777,2515.9,2515.7,5.04558]
[1729723468138,1.44,2515.9,2515.8,0.39778]
[1729723468343,1.44,2515.9,2515.8,0.82438]
[1729723468744,1.44,2515.9,2515.8,0.4266]
[1729723468946,1.83777,2515.9,2515.8,0.4266]
[1729723472446,1.83862534,2515.9,2515.8,0.4266]
[1729723472647,1.83862534,2515.9,2515.8,0.82438]
[1729723472846,1.83862534,2515.9,2515.8,2.26438]
[1729723473454,0.00085534,2515.9,2515.8,2.26438]
[1729723473659,0.39862534,2515.9,2515.8,2.26438]
[1729723475350,0.00085534,2515.9,2515.8,2.26438]
[1729723475552,1.83862534,2515.9,2515.8,2.26438]
[1729723475753,0.39778,2515.8,2515.7,4.2828]
[1729723475958,2.26358,2515.8,2515.7,3.2078]
[1729723477253,0.3978,2515.7,2515.6,1.075]
[1729723477454,0.3978,2515.7,2515.6,4.2828]
[1729723477953,0.3978,2515.7,2515.6,1.075]
[1729723478644,0.3978,2515.7,2515.6,4.2828]
[1729723480755,0.3978,2515.7,2515.6,4.68061]
[1729723481348,0.3978,2515.7,2515.6,4.2828]
[1729723481748,0.3978,2515.7,2515.6,4.68061]
[1729723485753,0.3978,2515.7,2515.6,4.2828]
[1729723486460,1.8378,2515.7,2515.6,4.2828]
[1729723487259,1.8378,2515.7,2515.6,4.68061]
[1729723488255,1.8658,2515.8,2515.6,4.68061]
[1729723488456,0.3978,2515.7,2515.6,4.68061]
[1729723488655,0.3978,2515.7,2515.6,5.10641]
[1729723489058,1.8658,2515.8,2515.6,4.7086]
[1729723489261,2.26359,2515.8,2515.7,0.3978]
[1729723489765,0.4258,2515.8,2515.7,1.8378]
[1729723489957,0.4258,2515.8,2515.7,2.2755]
[1729723491258,1.44085534,2515.9,2515.8,0.39778]
[1729723491561,1.50977969,2515.9,2515.8,0.39778]
[1729723491765,1.85865534,2515.9,2515.8,0.39778]
[1729723496563,1.85865534,2515.9,2515.8,1.83778]
[1729723496564,0.41865534,2515.9,2515.8,1.83778]
[1729723496766,1.85865534,2515.9,2515.7,2.27549]
[1729723497068,1.83778,2515.8,2515.7,2.27549]
[1729723497467,1.85865534,2515.9,2515.7,1.8777]
[1729723497768,2.25642534,2515.9,2515.8,0.39778]
[1729723498066,1.85865534,2515.9,2515.8,0.39778]
[1729723498267,0.41865534,2515.9,2515.8,0.39778]
[1729723498465,0.41865534,2515.9,2515.8,1.83778]
[1729723498671,0.81642534,2515.9,2515.8,1.83778]
[1729723500568,0.81642534,2515.9,2515.8,1.44]
[1729723500767,0.81642534,2515.9,2515.8,0.39778]
[1729723501169,0.41865534,2515.9,2515.7,1.8777]
[1729723501368,0.39778,2515.8,2515.7,2.27549]
[1729723502075,2.25643534,2515.9,2515.8,0.39778]
[1729723502570,0.39778,2515.8,2515.7,1.8777]
[1729723502767,0.39778,2515.8,2515.7,2.27549]
[1729723503471,0.81643534,2515.9,2515.8,0.39778]
[1729723506470,0.41865534,2515.9,2515.7,1.8777]
[1729723506777,0.81642534,2515.9,2515.8,0.39778]
[1729723507775,0.41865534,2515.9,2515.7,1.8777]
[1729723507982,0.81642534,2515.9,2515.8,0.39778]
[1729723508175,0.81643534,2515.9,2515.8,0.39778]
[1729723509272,0.81643534,2515.9,2515.8,3.60558]
[1729723509478,0.81643534,2515.9,2515.8,5.04558]
[1729723510880,0.41865534,2515.9,2515.8,5.04558]
[1729723511186,0.81642534,2515.9,2515.8,5.04558]
[1729723511772,0.41865534,2515.9,2515.8,5.04558]
[1729723514485,0.00085534,2515.9,2515.8,5.04558]
[1729723518087,0.00085534,2515.9,2515.8,9.01998]
[1729723518286,0.00085534,2515.9,2515.8,9.43248]
[1729723519285,0.00085534,2515.9,2515.8,5.45808]
[1729723520589,0.00085534,2515.9,2515.8,9.43248]
[1729723531098,0.39862534,2515.9,2515.8,3.60558]
[1729723531299,0.83112534,2515.9,2515.8,6.01658]
[1729723531500,1.25772534,2515.9,2515.8,5.6188]
[1729723531704,2.69772534,2515.9,2515.8,3.2078]
[1729723531920,6.67212534,2515.9,2515.8,3.2078]
[1729723532097,11.12969909,2515.9,2515.8,2.5468]
[1729723533097,7.15529909,2515.9,2515.8,2.5468]
[1729723533304,11.12969909,2515.9,2515.8,2.5468]
[1729723533815,9.68969909,2515.9,2515.8,3.9868]
[1729723534202,11.12969909,2515.9,2515.8,2.5468]
[1729723537811,9.68969909,2515.9,2515.8,3.9868]
[1729723538311,9.68969909,2515.9,2515.8,4.38458]
[1729723538514,9.68969909,2515.9,2515.8,3.9868]
[1729723538703,9.29192909,2515.9,2515.8,4.38458]
[1729723539008,9.68969909,2515.9,2515.8,4.38458]
[1729723539311,5.71529909,2515.9,2515.8,4.38458]
[1729723539710,9.68969909,2515.9,2515.8,4.38458]
[1729723540202,5.71529909,2515.9,2515.8,4.38458]
[1729723540404,9.68969909,2515.9,2515.8,1.83778]
[1729723543513,9.29107375,2515.9,2515.8,1.83778]
[1729723543713,5.31667375,2515.9,2515.8,1.83778]
[1729723543917,5.71444375,2515.9,2515.8,1.83778]
[1729723544212,9.68884375,2515.9,2515.8,1.44]
[1729723544514,9.68884375,2515.9,2515.8,1.83778]
[1729723545101,5.31667375,2515.9,2515.8,1.83778]
[1729723545310,1.41812,2516.2,2515.8,1.44]
[1729723545311,0.4238,2516.2,2515.8,1.44]
[1729723545501,0.82152,2516.2,2516.1,1.83773]
[1729723545703,1.8638,2516.2,2515.9,0.846]
[1729723546016,2.26153,2516.2,2516.1,0.39773]
[1729723546520,0.39773,2516.1,2516.0,1.83774]
[1729723546712,0.4273,2516.1,2516.0,1.83774]
[1729723547506,0.82503,2516.1,2516.0,1.83774]
[1729723548311,0.82503,2516.1,2516.0,1.83775]
[1729723548514,0.39775,2516.0,2515.9,1.83775]
[1729723549614,0.39778,2515.8,2515.7,3.60558]
[1729723549806,0.39778,2515.8,2515.7,3.2078]
[1729723550004,0.39778,2515.8,2515.7,5.0456]
[1729723550210,1.23718,2515.8,2515.7,4.6478]
[1729723550910,1.23718,2515.8,2515.7,5.0456]
[1729723551407,0.8394,2515.8,2515.7,5.0456]
[1729723551609,0.4067,2515.8,2515.7,5.4852]
[1729723551808,0.81437,2515.9,2515.8,0.39778]
[1729723552109,1.21797,2515.9,2515.8,1.83778]
[1729723552609,0.8202,2515.9,2515.8,1.83778]
[1729723553813,0.8202,2515.9,2515.8,5.04558]
[1729723554010,1.21797,2515.9,2515.8,5.04558]
[1729723554210,0.8202,2515.9,2515.8,5.04558]
[1729723554407,1.21797,2515.9,2515.8,5.04558]
[1729723556320,0.8202,2515.9,2515.8,5.04558]
[1729723556720,1.21797,2515.9,2515.8,5.04558]
[1729723558717,1.21797,2515.9,2515.8,3.2078]
[1729723558917,2.65797,2515.9,2515.8,3.2078]
[1729723560529,0.39781,2515.6,2515.5,3.2078]
[1729723560826,0.39783,2515.5,2515.4,1.4102]
[1729723561013,0.81203,2515.5,2515.4,1.4102]
[1729723561323,0.4142,2515.5,2515.4,3.24804]
[1729723561925,0.81203,2515.5,2515.4,3.24804]
[1729723562819,0.81203,2515.5,2515.4,5.48584]
[1729723564027,2.25203,2515.5,2515.4,3.648]
[1729723564221,0.81203,2515.5,2515.4,5.48584]
[1729723566123,2.25203,2515.5,2515.4,4.04584]
[1729723566831,2.25203,2515.5,2515.4,3.60564]
[1729723567322,2.25203,2515.5,2515.1,0.99473]
[1729723567323,0.39788,2515.2,2515.1,3.2078]
[1729723567524,1.83788,2515.2,2515.1,3.2078]
[1729723567828,6.27154756,2515.2,2515.1,4.6478]
[1729723569322,6.27154756,2515.2,2515.1,3.2078]
[1729723569717,0.39792,2514.9,2514.8,3.2078]
[1729723569923,1.83792,2514.9,2514.8,3.2078]
[1729723570123,2.68522,2514.9,2514.8,3.2078]
[1729723571338,1.24522,2514.9,2514.8,3.2078]
[1729723571526,1.8739,2514.9,2514.8,3.60574]
[1729723571726,0.4339,2514.9,2514.8,4.40944]
[1729723571927,1.8739,2514.9,2514.8,4.40944]
[1729723572827,2.27182,2514.9,2514.8,3.60574]
[1729723573923,2.27182,2514.9,2514.8,3.2078]
[1729723574125,2.27182,2514.9,2514.8,3.60574]
[1729723574446,2.27182,2514.9,2514.8,3.2078]
[1729723577723,1.8739,2514.9,2514.5,5.0476]
[1729723578029,1.83797,2514.6,2514.5,3.60579]
[1729723578229,1.44,2514.6,2514.5,5.0508]
[1729723578451,1.83797,2514.6,2514.5,5.44879]
[1729723578735,1.83797,2514.7,2514.5,5.44879]
[1729723579036,6.12471711,2514.7,2514.5,5.44879]
[1729723579423,5.72674711,2514.7,2514.5,5.0508]
[1729723579630,5.4168,2514.6,2514.5,3.2078]
[1729723579825,5.81477,2514.6,2514.5,3.2078]
[1729723580034,10.30280349,2514.6,2514.5,3.2078]
[1729723581335,5.92803349,2514.6,2514.5,3.60579]
[1729723581536,0.3979,2515.1,2514.5,4.6478]
[1729723581736,3.2078,2515.4,2514.9,0.39792]
[1729723581737,1.83792,2515.0,2514.9,0.39792]
[1729723582036,6.0581335,2515.0,2514.9,0.39792]
[1729723582227,1.44,2515.0,2514.9,0.39792]
[1729723582634,5.74584418,2515.0,2514.9,0.39792]
[1729723582837,6.17404418,2515.0,2514.9,0.39792]
[1729723584935,6.57195418,2515.0,2514.9,0.39792]
[1729723585132,6.17404418,2515.0,2514.9,0.39792]
[1729723587937,6.17404418,2515.0,2514.8,3.2078]
[1729723588136,1.83792,2514.9,2514.8,3.60573]
[1729723588844,1.44,2514.9,2514.8,3.60573]
[1729723589243,1.44,2514.9,2514.8,4.02433]
[1729723589636,1.44,2514.9,2514.8,3.2078]
[1729723589936,0.39798,2514.6,2514.5,0.39799]
[1729723590141,1.44,2514.6,2514.5,0.81659]
[1729723590442,1.83797,2514.6,2514.5,2.25659]
[1729723591236,1.83797,2514.6,2514.5,0.4186]
[1729723591437,1.83797,2514.6,2514.5,0.81659]
[1729723591943,1.83797,2514.6,2514.1,0.8478]
[1729723591944,0.3981,2513.8,2513.7,3.2078]
[1729723592236,5.91750773,2513.8,2513.3,0.8445]
[1729723592437,1.83816,2513.4,2513.3,0.8445]
[1729723592637,1.44,2513.4,2513.3,0.4114]
[1729723592838,1.44,2513.4,2513.3,0.80958]
[1729723593045,1.83816,2513.4,2513.3,0.4114]
[1729723593237,1.83816,2513.4,2513.2,3.609]
[1729723593238,0.39818,2513.3,2513.2,3.609]
[1729723593541,1.83818,2513.3,2513.2,3.609]
[1729723595039,1.83818,2513.3,2513.2,4.00719]
[1729723595638,1.83818,2513.3,2513.2,3.609]
[1729723597538,3.27818,2513.3,2513.2,3.609]
[1729723597844,11.55369779,2513.3,2513.2,3.2078]
[1729723598245,10.11369779,2513.3,2513.2,3.2078]
[1729723600358,11.78369779,2513.3,2513.0,0.39822]
[1729723600654,7.80449779,2513.3,2513.0,0.39822]
[1729723600854,7.80449779,2513.3,2512.9,3.2078]
[1729723601158,7.80449779,2513.3,2513.1,0.39821]
[1729723601542,7.80449779,2513.3,2512.9,3.2078]
[1729723601543,7.40631779,2513.3,2512.9,3.2078]
[1729723601749,7.40631779,2513.3,2513.1,0.39819]
[1729723601950,7.40631779,2513.3,2512.9,3.2078]
[1729723602142,7.80450779,2513.3,2513.1,0.3982]
[1729723602654,7.80450779,2513.3,2512.9,3.2078]
[1729723602655,0.39819,2513.2,2512.9,3.2078]
[1729723602845,7.40631779,2513.3,2513.2,0.39819]
[1729723603045,3.50818,2513.3,2513.2,0.39819]
[1729723603351,8.04179873,2513.3,2513.2,0.39819]
[1729723603551,0.3982,2513.2,2513.0,0.39822]
[1729723603753,0.3982,2513.2,2513.1,0.39821]
[1729723604046,4.66390919,2513.2,2513.1,0.39821]
[1729723604750,4.26570919,2513.2,2513.1,0.39821]
[1729723607658,3.66789575,2513.2,2513.1,0.39821]
[1729723608951,4.06608575,2513.2,2513.1,0.39821]
[1729723609455,3.66789575,2513.2,2513.1,0.39821]
[1729723611355,0.39822,2513.0,2512.9,3.2078]
[1729723611661,3.11,2513.0,2512.9,0.39824]
[1729723612256,3.50823,2513.0,2512.8,0.83394]
[1729723612460,3.50823,2513.0,2512.9,0.39824]
[1729723612461,3.11,2513.0,2512.9,0.39824]
[1729723613157,0.3982,2513.2,2513.0,0.39822]
[1729723613357,3.2078,2513.3,2513.1,0.39821]
[1729723613358,6.3178,2513.3,2513.1,0.39821]
[1729723613660,3.50816,2513.4,2513.3,0.39818]
[1729723613960,7.842427,2513.4,2513.3,0.39818]
[1729723614353,7.842427,2513.4,2513.2,0.4094]
[1729723614562,7.842427,2513.4,2513.2,0.80758]
[1729723614864,0.39818,2513.3,2513.2,0.4094]
[1729723615060,0.39818,2513.3,2513.2,0.80759]
[1729723617956,0.39818,2513.3,2513.2,0.4094]
[1729723622365,0.39818,2513.3,2513.2,0.80759]
[1729723623359,7.444267,2513.4,2513.2,0.80759]